{"text_format":"1","workbook":"xlsx","n_sheets":4,"sheets":["DATA","ACCUEIL","Feuil3","Feuil4"],"not_rendered":{"charts":0,"images":1,"macros":1,"external_links":0,"defined_names":0,"comments":0,"pivot_tables":0},"unopened":[],"bounds":{"document_bytes":16777216,"sheet_cells":100000,"rows_first":2000,"rows_last":500,"rows_between":2000,"halvings":0,"cell_chars":16384,"cell_head_chars":4096},"cells_cut":0,"cells_raw":0,"read":"whole","date_system":"1900"}

{"sheet":"DATA","index":0,"n_rows":30,"n_cols":6,"rows_kept":30,"cut":false,"hidden":false,"merged":[]}
["Š",{"$f":"CODE(A1)","v":138},"S",{"$f":"CODE(C1)","v":83}]
["Ž",{"$f":"CODE(A2)","v":142},"Z",{"$f":"CODE(C2)","v":90}]
["Ÿ",159,"Y",89]
["À",192,"A",65]
["Á",193,"A",65]
["Â",194,"A",65,null,"Cette feuille DATA peut être masquée au besoin"]
["Ã",195,"A",65]
["Ä",196,"A",65]
["Å",197,"A",65]
["Ç",199,"C",67]
["È",200,"E",69]
["É",201,"E",69]
["Ê",202,"E",69]
["Ë",203,"E",69]
["Ì",204,"I",73]
["Í",205,"I",73]
["Î",206,"I",73]
["Ï",207,"I",73]
["Ð",208,"D",68]
["Ñ",209,"N",78]
["Ò",210,"O",79]
["Ó",211,"O",79]
["Ô",212,"O",79]
["Õ",213,"O",79]
["Ö",214,"O",79]
["Ù",217,"U",85]
["Ú",218,"U",85]
["Û",219,"U",85]
["Ü",220,"U",85]
["Ý",221,"Y",89]

{"sheet":"ACCUEIL","index":1,"n_rows":10,"n_cols":7,"rows_kept":10,"cut":false,"hidden":false,"merged":[]}
[]
[]
[null,null,null,null,null,null,"RECHERCHER UN MOT DANS LE CLASSEUR"]
[]
[null,null,null,null,null,null,"alpes"]
[]
[]
[]
[null,null,null,null,null,null,"Feuil3 :  C1 A4 C4 A5 C5 A6 C6 C7 C13 C27 C39 C43 C70 C74 C75 C84 C85"]
[null,null,null,null,null,null,"Feuil4 :  C6 C7 C17 C20 C44 C47 C56 A58 C58 C70 C84 C91 A92 C92 A93 C93 C96"]

{"sheet":"Feuil3","index":2,"n_rows":96,"n_cols":3,"rows_kept":96,"cut":false,"hidden":false,"merged":[]}
["AIN ","Bourg-en-Bresse","Rhone-Alpes "]
["AISNE ","Laon ","Picardie "]
["ALLIER ","Moulins ","Auvergne "]
["ALPES DE HAUTE-PROVENCE ","Digne-les-Bains","Provence-Alpes-Cote d'Azur "]
["HAUTES-ALPES ","Gap ","Provence-Alpes-Cote d'Azur "]
["ALPES-MARITIMES ","Nice ","Provence-Alpes-Cote d'Azur "]
["ARDECHE ","Privas ","Rhone-Alpes "]
["ARDENNES ","Charleville-Mezieres ","Champagne-Ardenne "]
["ARIEGE ","Foix ","Midi-Pyrenees"]
["AUBE ","Troyes ","Champagne-Ardenne "]
["AUDE ","Carcassonne ","Languedoc-Roussillon"]
["AVEYRON ","Rodez ","Midi-Pyrenees "]
["BOUCHES-DU-RHONE ","Marseille ","Provence-Alpes-Cote d'Azur "]
["CALVADOS ","Caen ","Basse-Normandie "]
["CANTAL ","Aurillac ","Auvergne"]
["CHARENTE ","Angouleme ","Poitou-Charentes"]
["CHARENTE-MARITIME ","La Rochelle ","Poitou-Charentes"]
["CHER ","Bourges ","Centre "]
["CORREZE ","Tulle ","Limousin "]
["CORSE-DU-SUD ","Ajaccio ","Corse "]
["HAUTE-CORSE ","Bastia ","Corse"]
["COTE-D'OR ","Dijon ","Bourgogne "]
["COTES D'ARMOR ","St-Brieuc ","Bretagne "]
["CREUSE ","Gueret ","Limousin"]
["DORDOGNE ","Perigueux ","Aquitaine "]
["DOUBS ","Besançon ","Franche-Comte "]
["DROME ","Valence ","Rhone-Alpes "]
["EURE ","Evreux ","Haute-Normandie "]
["EURE-ET-LOIR ","Chartres ","Centre"]
["FINISTERE ","Quimper ","Bretagne "]
["GARD ","Nimes ","Languedoc-Roussillon"]
["HAUTE-GARONNE ","Toulouse ","Midi-Pyrenees "]
["GERS ","Auch ","Midi-Pyrenees "]
["GIRONDE ","Bordeaux ","Aquitaine "]
["HERAULT ","Montpellier ","Languedoc-Roussillon"]
["ÎLE-ET-VILAINE ","Rennes ","Bretagne "]
["INDRE ","Chateauroux ","Centre"]
["INDRE-ET-LOIRE ","Tours ","Centre"]
["ISERE ","Grenoble ","Rhone-Alpes "]
["JURA ","Lons-le-Saunier ","Franche-Comte "]
["LANDES ","Mont-de-Marsan ","Aquitaine "]
["LOIR-ET-CHER ","Blois ","Centre"]
["LOIRE ","Saint-Etienne ","Rhone-Alpes "]
["HAUTE-LOIRE ","Le Puy-en-Velay","Auvergne "]
["LOIRE-ATLANTIQUE ","Nantes ","Pays de la Loire "]
["LOIRET ","Orleans ","Centre "]
["LOT ","Cahors ","Midi-Pyrenees "]
["LOT-ET-GARONNE ","Agen ","Aquitaine "]
["LOZERE ","Mende ","Languedoc-Roussillon "]
["MAINE-ET-LOIRE ","Angers ","Pays de la Loire "]
["MANCHE ","Saint-Lo ","Basse-Normandie "]
["MARNE ","Chalons-en-Champagne","Champagne-Ardenne "]
["HAUTE-MARNE ","Chaumont ","Champagne-Ardenne "]
["MAYENNE ","Laval ","Pays de la Loire "]
["MEURTHE-ET-MOSELLE ","Nancy ","Lorraine "]
["MEUSE ","Bar-le-Duc ","Lorraine "]
["MORBIHAN ","Vannes ","Bretagne "]
["MOSELLE ","Metz ","Lorraine "]
["NIEVRE ","Nevers ","Bourgogne"]
["NORD ","Lille ","Nord-Pas-de-Calais "]
["OISE ","Beauvais ","Picardie "]
["ORNE ","Alençon ","Basse-Normandie "]
["PAS-DE-CALAIS ","Arras ","Nord-Pas-de-Calais"]
["PUY-DE-DOME ","Clermont-Ferrand ","Auvergne "]
["PYRENEES-ATLANTIQUES ","Pau ","Aquitaine "]
["HAUTES-PYRENEES ","Tarbes ","Midi-Pyrenees "]
["PYRENEES-ORIENTALES ","Perpignan ","Languedoc-Roussillon"]
["BAS-RHIN ","Strasbourg ","Alsace "]
["HAUT-RHIN ","Colmar ","Alsace "]
["RHONE ","Lyon ","Rhone-Alpes "]
["HAUTE-SAONE ","Vesoul ","Franche-Comte "]
["SAONE-ET-LOIRE ","Macon ","Bourgogne"]
["SARTHE ","Le Mans ","Pays de la Loire "]
["SAVOIE ","Chambery ","Rhone-Alpes "]
["HAUTE-SAVOIE ","Annecy ","Rhone-Alpes "]
["PARIS ","Paris ","Île-de-France "]
["SEINE-MARITIME ","Rouen ","Haute-Normandie "]
["SEINE-ET-MARNE ","Melun ","Île-de-France "]
["YVELINES ","Versailles ","Île-de-France "]
["DEUX-SEVRES ","Niort ","Poitou-Charentes "]
["SOMME ","Amiens ","Picardie "]
["TARN ","Albi ","Midi-Pyrenees "]
["TARN-ET-GARONNE ","Montauban ","Midi-Pyrenees "]
["VAR ","Toulon ","Provence-Alpes-Cote d'Azur "]
["VAUCLUSE ","Avignon ","Provence-Alpes-Cote d'Azur "]
["VENDEE ","La Roche-sur-Yon ","Pays de la Loire "]
["VIENNE ","Poitiers ","Poitou-Charentes "]
["HAUTE-VIENNE ","Limoges ","Limousin"]
["VOSGES ","Epinal ","Lorraine "]
["YONNE ","Auxerre ","Bourgogne"]
["TERRITOIRE-DE-BELFORT ","Belfort ","Franche-Comte "]
["ESSONNE ","Evry ","Île-de-France "]
["HAUTS-DE-SEINE ","Nanterre ","Île-de-France "]
["SEINE-SAINT-DENIS ","Bobigny ","Île-de-France "]
["VAL-DE-MARNE ","Creteil ","Île-de-France "]
["VAL-D'OISE ","Pontoise ","Île-de-France "]

{"sheet":"Feuil4","index":3,"n_rows":96,"n_cols":3,"rows_kept":96,"cut":false,"hidden":false,"merged":[]}
["Yvelines ","Versailles ","Île-de-France "]
["Yonne ","Auxerre ","Bourgogne"]
["Vosges ","Épinal ","Lorraine "]
["Vienne ","Poitiers ","Poitou-Charentes "]
["Vendée ","La Roche-sur-Yon ","Pays de la Loire "]
["Vaucluse ","Avignon ","Provence-Alpes-Côte d'Azur "]
["Var ","Toulon ","Provence-Alpes-Côte d'Azur "]
["Val-d'Oise ","Pontoise ","Île-de-France "]
["Val-de-Marne ","Créteil ","Île-de-France "]
["Territoire-de-Belfort ","Belfort ","Franche-Comté "]
["Tarn-et-Garonne ","Montauban ","Midi-Pyrénées "]
["Tarn ","Albi ","Midi-Pyrénées "]
["Somme ","Amiens ","Picardie "]
["Seine-Saint-Denis ","Bobigny ","Île-de-France "]
["Seine-Maritime ","Rouen ","Haute-Normandie "]
["Seine-et-Marne ","Melun ","Île-de-France "]
["Savoie ","Chambéry ","Rhône-Alpes "]
["Sarthe ","Le Mans ","Pays de la Loire "]
["Saône-et-Loire ","Mâcon ","Bourgogne"]
["Rhône ","Lyon ","Rhône-Alpes "]
["Pyrénées-Orientales ","Perpignan ","Languedoc-Roussillon"]
["Pyrénées-Atlantiques ","Pau ","Aquitaine "]
["Puy-de-Dôme ","Clermont-Ferrand ","Auvergne "]
["Pas-de-Calais ","Arras ","Nord-Pas-de-Calais"]
["Paris ","Paris ","Île-de-France "]
["Orne ","Alençon ","Basse-Normandie "]
["Oise ","Beauvais ","Picardie "]
["Nord ","Lille ","Nord-Pas-de-Calais "]
["Nièvre ","Nevers ","Bourgogne"]
["Moselle ","Metz ","Lorraine "]
["Morbihan ","Vannes ","Bretagne "]
["Meuse ","Bar-le-Duc ","Lorraine "]
["Meurthe-et-Moselle ","Nancy ","Lorraine "]
["Mayenne ","Laval ","Pays de la Loire "]
["Marne ","Châlons-en-Champagne","Champagne-Ardenne "]
["Manche ","Saint-Lô ","Basse-Normandie "]
["Maine-et-Loire ","Angers ","Pays de la Loire "]
["Lozère ","Mende ","Languedoc-Roussillon "]
["Lot-et-Garonne ","Agen ","Aquitaine "]
["Lot ","Cahors ","Midi-Pyrénées "]
["Loir-et-Cher ","Blois ","Centre"]
["Loiret ","Orléans ","Centre "]
["Loire-Atlantique ","Nantes ","Pays de la Loire "]
["Loire ","Saint-Étienne ","Rhône-Alpes "]
["Landes ","Mont-de-Marsan ","Aquitaine "]
["Jura ","Lons-le-Saunier ","Franche-Comté "]
["Isère ","Grenoble ","Rhône-Alpes "]
["Indre-et-Loire ","Tours ","Centre"]
["Indre ","Châteauroux ","Centre"]
["Île-et-Vilaine ","Rennes ","Bretagne "]
["Hérault ","Montpellier ","Languedoc-Roussillon"]
["Hauts-de-Seine ","Nanterre ","Île-de-France "]
["Haut-Rhin ","Colmar ","Alsace "]
["Haute-Vienne ","Limoges ","Limousin"]
["Hautes-Pyrénées ","Tarbes ","Midi-Pyrénées "]
["Haute-Savoie ","Annecy ","Rhône-Alpes "]
["Haute-Saône ","Vesoul ","Franche-Comté "]
["Hautes-Alpes ","Gap ","Provence-Alpes-Côte d'Azur "]
["Haute-Marne ","Chaumont ","Champagne-Ardenne "]
["Haute-Loire ","Le Puy-en-Velay","Auvergne "]
["Haute-Garonne ","Toulouse ","Midi-Pyrénées "]
["Haute-Corse ","Bastia ","Corse"]
["Gironde ","Bordeaux ","Aquitaine "]
["Gers ","Auch ","Midi-Pyrénées "]
["Gard ","Nîmes ","Languedoc-Roussillon"]
["Finistère ","Quimper ","Bretagne "]
["Eure-et-Loir ","Chartres ","Centre"]
["Eure ","Évreux ","Haute-Normandie "]
["Essonne ","Évry ","Île-de-France "]
["Drôme ","Valence ","Rhône-Alpes "]
["Doubs ","Besançon ","Franche-Comté "]
["Dordogne ","Périgueux ","Aquitaine "]
["Deux-Sèvres ","Niort ","Poitou-Charentes "]
["Creuse ","Guéret ","Limousin"]
["Côtes d'Armor ","St-Brieuc ","Bretagne "]
["Côte-d'Or ","Dijon ","Bourgogne "]
["Corse-du-Sud ","Ajaccio ","Corse "]
["Corrèze ","Tulle ","Limousin "]
["Cher ","Bourges ","Centre "]
["Charente-Maritime ","La Rochelle ","Poitou-Charentes"]
["Charente ","Angoulême ","Poitou-Charentes"]
["Cantal ","Aurillac ","Auvergne"]
["Calvados ","Caen ","Basse-Normandie "]
["Bouches-du-Rhône ","Marseille ","Provence-Alpes-Côte d'Azur "]
["Bas-Rhin ","Strasbourg ","Alsace "]
["Aveyron ","Rodez ","Midi-Pyrénées "]
["Aude ","Carcassonne ","Languedoc-Roussillon"]
["Aube ","Troyes ","Champagne-Ardenne "]
["Ariège ","Foix ","Midi-Pyrénées"]
["Ardennes ","Charleville-Mézières ","Champagne-Ardenne "]
["Ardêche ","Privas ","Rhône-Alpes "]
["Alpes-Maritimes ","Nice ","Provence-Alpes-Côte d'Azur "]
["Alpes de Haute-Provence ","Digne-les-Bains","Provence-Alpes-Côte d'Azur "]
["Allier ","Moulins ","Auvergne "]
["Aisne ","Laon ","Picardie "]
["Ain ","Bourg-en-Bresse","Rhône-Alpes "]